[Event "Rapid Tournament (RAP)"]
[Site "Biel, Switzerland"]
[Date "2026.07.12"]
[Round "5.25"]
[White "Bonanomi, Silvan"]
[Black "Ling, Chenxuan"]
[Result "0-1"]
[TimeControl "15 + 5"]
[WhiteTitle "-"]
[BlackTitle "-"]
[WhiteFideId "1352644"]
[BlackFideId "30983118"]
[WhiteElo "1867"]
[BlackElo "2077"]

1. e4 {[%clk 00:15:07]} {[%emt 00:00:03]} e6 {[%clk 00:15:08]} {[%emt
00:00:02]} 2. d4 {[%clk 00:15:10]} {[%emt 00:00:02]} d5 {[%clk 00:15:12]}
{[%emt 00:00:01]} 3. Nd2 {[%clk 00:15:13]} {[%emt 00:00:03]} Nf6 {[%clk
00:15:14]} {[%emt 00:00:02]} 4. e5 {[%clk 00:15:16]} {[%emt 00:00:02]} Nfd7
{[%clk 00:15:18]} {[%emt 00:00:01]} 5. Ndf3 {[%clk 00:15:19]} {[%emt 00:00:02]}
c5 {[%clk 00:15:21]} {[%emt 00:00:02]} 6. c3 {[%clk 00:15:22]} {[%emt
00:00:02]} Nc6 {[%clk 00:15:23]} {[%emt 00:00:02]} 7. Bd3 {[%clk 00:15:26]}
{[%emt 00:00:02]} Be7 {[%clk 00:14:51]} {[%emt 00:00:37]} 8. Ne2 {[%clk
00:15:29]} {[%emt 00:00:02]} O-O {[%clk 00:14:25]} {[%emt 00:00:32]} 9. h4
{[%clk 00:14:52]} {[%emt 00:00:41]} cxd4 {[%clk 00:12:43]} {[%emt 00:01:48]} 10.
cxd4 {[%clk 00:14:53]} {[%emt 00:00:03]} f6 {[%clk 00:11:14]} {[%emt 00:01:35]}
11. Nf4 {[%clk 00:14:55]} {[%emt 00:00:03]} Ndxe5 {[%clk 00:10:59]} {[%emt
00:00:20]} 12. dxe5 {[%clk 00:14:24]} {[%emt 00:00:35]} fxe5 {[%clk 00:11:01]}
{[%emt 00:00:04]} 13. Bxh7+ {[%clk 00:14:01]} {[%emt 00:00:27]} Kxh7 {[%clk
00:10:22]} {[%emt 00:00:44]} 14. Ng5+ {[%clk 00:14:04]} {[%emt 00:00:02]} Kg8
{[%clk 00:10:26]} 15. Nfxe6 {[%clk 00:10:24]} {[%emt 00:03:45]} Bxe6 {[%clk
00:10:14]} {[%emt 00:00:17]} 16. Nxe6 {[%clk 00:10:26]} {[%emt 00:00:03]} Qa5+
{[%clk 00:10:19]} 17. Bd2 {[%clk 00:10:28]} {[%emt 00:00:03]} Qb6 {[%clk
00:10:20]} {[%emt 00:00:03]} 18. Nxf8 {[%clk 00:10:23]} {[%emt 00:00:10]} Rxf8
{[%clk 00:10:24]} {[%emt 00:00:01]} 19. Be3 {[%clk 00:09:20]} {[%emt 00:01:08]}
Bb4+ {[%clk 00:10:23]} {[%emt 00:00:06]} 20. Ke2 {[%clk 00:09:11]} {[%emt
00:00:14]} d4 {[%clk 00:10:27]} {[%emt 00:00:02]} 21. Qb3+ {[%clk 00:09:00]}
{[%emt 00:00:16]} Kh8 {[%clk 00:10:24]} {[%emt 00:00:06]} 22. a3 {[%clk
00:07:41]} {[%emt 00:01:25]} dxe3 {[%clk 00:10:26]} {[%emt 00:00:02]} 23. axb4
{[%clk 00:07:44]} {[%emt 00:00:03]} Nd4+ {[%clk 00:10:31]} 0-1

[Event "Rapid Tournament (RAP)"]
[Site "Biel, Switzerland"]
[Date "2026.07.12"]
[Round "5.26"]
[White "Tkhoruk, Roman"]
[Black "Aryan, Goyal"]
[Result "1/2-1/2"]
[TimeControl "15 + 5"]
[WhiteTitle "-"]
[BlackTitle "-"]
[WhiteFideId "34161589"]
[BlackFideId "366108825"]
[WhiteElo "2076"]
[BlackElo "1869"]

1. e4 {[%clk 00:15:09]} {[%emt 00:00:03]} e5 {[%clk 00:15:10]} 2. Nf3 {[%clk
00:15:13]} Nc6 {[%clk 00:15:14]} 3. Bc4 {[%clk 00:15:18]} Bc5 {[%clk 00:15:18]}
{[%emt 00:00:01]} 4. c3 {[%clk 00:15:22]} {[%emt 00:00:01]} Nf6 {[%clk
00:15:22]} 5. d4 {[%clk 00:15:26]} {[%emt 00:00:01]} exd4 {[%clk 00:15:26]}
{[%emt 00:00:01]} 6. e5 {[%clk 00:15:30]} {[%emt 00:00:01]} d5 {[%clk
00:15:26]} {[%emt 00:00:05]} 7. Bb5 {[%clk 00:15:35]} Ne4 {[%clk 00:15:30]} 8.
cxd4 {[%clk 00:15:39]} {[%emt 00:00:01]} Bb6 {[%clk 00:15:34]} 9. O-O {[%clk
00:15:23]} {[%emt 00:00:20]} O-O {[%clk 00:15:35]} {[%emt 00:00:04]} 10. Be3
{[%clk 00:15:26]} {[%emt 00:00:03]} Bg4 {[%clk 00:15:28]} {[%emt 00:00:11]} 11.
Nc3 {[%clk 00:14:24]} {[%emt 00:01:07]} Bxf3 {[%clk 00:13:08]} {[%emt
00:02:25]} 12. gxf3 {[%clk 00:14:27]} {[%emt 00:00:02]} Nxc3 {[%clk 00:13:08]}
{[%emt 00:00:06]} 13. bxc3 {[%clk 00:14:31]} Qh4 {[%clk 00:13:00]} {[%emt
00:00:12]} 14. Bxc6 {[%clk 00:14:26]} {[%emt 00:00:11]} bxc6 {[%clk 00:13:04]}
{[%emt 00:00:01]} 15. f4 {[%clk 00:14:05]} {[%emt 00:00:26]} Rae8 {[%clk
00:12:39]} {[%emt 00:00:29]} 16. Qf3 {[%clk 00:13:44]} {[%emt 00:00:26]} f6
{[%clk 00:12:12]} {[%emt 00:00:33]} 17. Qg3 {[%clk 00:13:15]} {[%emt 00:00:34]}
Qh5 {[%clk 00:12:01]} {[%emt 00:00:16]} 18. Kh1 {[%clk 00:12:56]} {[%emt
00:00:24]} fxe5 {[%clk 00:11:53]} {[%emt 00:00:13]} 19. fxe5 {[%clk 00:12:19]}
{[%emt 00:00:42]} Re6 {[%clk 00:11:52]} {[%emt 00:00:06]} 20. f4 {[%clk
00:12:01]} {[%emt 00:00:24]} Rg6 {[%clk 00:11:55]} {[%emt 00:00:02]} 21. Qf3
{[%clk 00:12:05]} Qf5 {[%clk 00:11:46]} {[%emt 00:00:13]} 22. Bc1 {[%clk
00:09:37]} {[%emt 00:02:33]} Rh6 {[%clk 00:11:31]} {[%emt 00:00:21]} 23. Kg2
{[%clk 00:09:09]} {[%emt 00:00:33]} Re8 {[%clk 00:11:17]} {[%emt 00:00:19]} 24.
Be3 {[%clk 00:08:34]} {[%emt 00:00:39]} Ree6 {[%clk 00:11:13]} {[%emt
00:00:09]} 25. Bf2 {[%clk 00:08:38]} {[%emt 00:00:02]} Reg6+ {[%clk 00:11:07]}
{[%emt 00:00:11]} 26. Bg3 {[%clk 00:08:41]} {[%emt 00:00:01]} Rh3 {[%clk
00:08:51]} {[%emt 00:02:21]} 27. a4 {[%clk 00:07:23]} {[%emt 00:01:23]} a5
{[%clk 00:08:50]} {[%emt 00:00:06]} 28. Ra2 {[%clk 00:07:17]} {[%emt 00:00:12]}
h5 {[%clk 00:08:45]} {[%emt 00:00:10]} 29. e6 {[%clk 00:04:45]} {[%emt
00:02:37]} Rxe6 {[%clk 00:07:51]} {[%emt 00:00:58]} 30. Re2 {[%clk 00:04:03]}
{[%emt 00:00:47]} Rxe2+ {[%clk 00:03:53]} {[%emt 00:04:03]} 31. Qxe2 {[%clk
00:04:07]} {[%emt 00:00:01]} h4 {[%clk 00:03:50]} {[%emt 00:00:08]} 32. Qe5
{[%clk 00:02:27]} {[%emt 00:01:45]} Qd7 {[%clk 00:01:48]} {[%emt 00:02:07]} 33.
f5 {[%clk 00:02:26]} {[%emt 00:00:07]} hxg3 {[%clk 00:01:08]} {[%emt 00:00:44]}
34. Kxh3 {[%clk 00:02:30]} {[%emt 00:00:02]} gxh2 {[%clk 00:01:07]} {[%emt
00:00:06]} 35. Kxh2 {[%clk 00:02:26]} {[%emt 00:00:09]} Qf7 {[%clk 00:01:11]}
36. Qe6 {[%clk 00:02:28]} {[%emt 00:00:02]} c5 {[%clk 00:01:07]} {[%emt
00:00:10]} 37. Rf3 {[%clk 00:02:06]} {[%emt 00:00:26]} cxd4 {[%clk 00:00:57]}
{[%emt 00:00:15]} 38. Qc8+ {[%clk 00:01:48]} {[%emt 00:00:23]} Qf8 {[%clk
00:01:02]} {[%emt 00:00:01]} 39. Qe6+ {[%clk 00:01:24]} {[%emt 00:00:28]} Qf7
{[%clk 00:01:06]} 40. cxd4 {[%clk 00:01:27]} {[%emt 00:00:03]} Bxd4 {[%clk
00:00:56]} {[%emt 00:00:15]} 41. Rd3 {[%clk 00:01:09]} {[%emt 00:00:23]} c5
{[%clk 00:00:28]} {[%emt 00:00:33]} 42. Qc8+ {[%clk 00:01:10]} {[%emt
00:00:03]} Qf8 {[%clk 00:00:33]} 43. Qe6+ {[%clk 00:01:07]} {[%emt 00:00:07]}
Qf7 {[%clk 00:00:37]} 44. Qc8+ {[%clk 00:00:58]} {[%emt 00:00:14]} Qf8 {[%clk
00:00:41]} 45. Qe6+ {[%clk 00:01:01]} {[%emt 00:00:02]} Qf7 {[%clk 00:00:46]}
{[%emt 00:00:01]} 1/2-1/2

[Event "Rapid Tournament (RAP)"]
[Site "Biel, Switzerland"]
[Date "2026.07.12"]
[Round "5.27"]
[White "Egli, Urs"]
[Black "Schmied, Stefan"]
[Result "1-0"]
[TimeControl "15 + 5"]
[WhiteTitle "-"]
[BlackTitle "-"]
[WhiteFideId "1306685"]
[BlackFideId "1335804"]
[WhiteElo "1964"]
[BlackElo "1778"]

1. g3 {[%clk 00:15:09]} {[%emt 00:07:00]} d5 {[%clk 00:15:02]} {[%emt
00:00:08]} 2. Bg2 {[%clk 00:15:12]} {[%emt 00:00:01]} Bf5 {[%clk 00:14:57]}
{[%emt 00:00:10]} 3. c4 {[%clk 00:15:13]} {[%emt 00:00:04]} c6 {[%clk
00:14:55]} {[%emt 00:00:07]} 4. cxd5 {[%clk 00:15:03]} {[%emt 00:00:16]} cxd5
{[%clk 00:14:21]} {[%emt 00:00:39]} 5. Qb3 {[%clk 00:14:42]} {[%emt 00:00:25]}
e6 {[%clk 00:14:12]} {[%emt 00:00:14]} 6. Qxb7 {[%clk 00:14:29]} {[%emt
00:00:18]} Nd7 {[%clk 00:14:13]} {[%emt 00:00:04]} 7. Nf3 {[%clk 00:12:23]}
{[%emt 00:02:11]} Bc5 {[%clk 00:11:35]} {[%emt 00:02:44]} 8. d4 {[%clk
00:12:00]} {[%emt 00:00:28]} Rb8 {[%clk 00:11:04]} {[%emt 00:00:35]} 9. Qa6
{[%clk 00:11:45]} {[%emt 00:00:20]} Bb6 {[%clk 00:08:08]} {[%emt 00:03:01]} 10.
Bf4 {[%clk 00:10:59]} {[%emt 00:00:51]} Rc8 {[%clk 00:07:59]} {[%emt 00:00:14]}
11. Nc3 {[%clk 00:09:51]} {[%emt 00:01:14]} Ngf6 {[%clk 00:07:55]} {[%emt
00:00:09]} 12. O-O {[%clk 00:08:42]} {[%emt 00:01:14]} O-O {[%clk 00:07:57]}
{[%emt 00:00:03]} 13. Rac1 {[%clk 00:07:59]} {[%emt 00:00:48]} Ne4 {[%clk
00:03:45]} {[%emt 00:04:16]} 14. Nxe4 {[%clk 00:02:42]} {[%emt 00:05:22]} Bxe4
{[%clk 00:03:44]} {[%emt 00:00:07]} 15. e3 {[%clk 00:02:28]} {[%emt 00:00:19]}
Rc2 {[%clk 00:02:20]} {[%emt 00:01:28]} 16. Rxc2 {[%clk 00:02:23]} {[%emt
00:00:12]} Bxc2 {[%clk 00:02:23]} {[%emt 00:00:02]} 17. Rc1 {[%clk 00:02:20]}
{[%emt 00:00:07]} Be4 {[%clk 00:02:15]} {[%emt 00:00:12]} 18. Ne5 {[%clk
00:01:51]} {[%emt 00:00:35]} Nxe5 {[%clk 00:02:12]} {[%emt 00:00:08]} 19. Bxe5
{[%clk 00:01:54]} {[%emt 00:00:02]} Bxg2 {[%clk 00:02:11]} {[%emt 00:00:06]} 20.
Kxg2 {[%clk 00:01:57]} {[%emt 00:00:03]} f6 {[%clk 00:01:56]} {[%emt 00:00:19]}
21. Bf4 {[%clk 00:01:36]} {[%emt 00:00:27]} g5 {[%clk 00:01:59]} {[%emt
00:00:01]} 22. Bc7 {[%clk 00:01:20]} {[%emt 00:00:21]} Bxc7 {[%clk 00:02:00]}
{[%emt 00:00:04]} 23. Qxe6+ {[%clk 00:01:24]} {[%emt 00:00:01]} Kg7 {[%clk
00:01:55]} {[%emt 00:00:10]} 24. Qc6 {[%clk 00:01:26]} {[%emt 00:00:02]} Bb6
{[%clk 00:01:51]} {[%emt 00:00:09]} 25. b4 {[%clk 00:01:24]} {[%emt 00:00:08]}
Rf7 {[%clk 00:01:47]} {[%emt 00:00:08]} 26. Qe6 {[%clk 00:01:18]} {[%emt
00:00:12]} Qd7 {[%clk 00:01:48]} {[%emt 00:00:04]} 27. Qxd7 {[%clk 00:01:17]}
{[%emt 00:00:06]} Rxd7 {[%clk 00:01:51]} {[%emt 00:00:01]} 28. a4 {[%clk
00:01:12]} {[%emt 00:00:11]} Rc7 {[%clk 00:01:53]} {[%emt 00:00:02]} 29. Rb1
{[%clk 00:01:11]} {[%emt 00:00:07]} Rc4 {[%clk 00:01:52]} {[%emt 00:00:06]} 30.
a5 {[%clk 00:01:13]} {[%emt 00:00:04]} Bd8 {[%clk 00:01:50]} {[%emt 00:00:06]}
31. Kf3 {[%clk 00:01:13]} {[%emt 00:00:05]} a6 {[%clk 00:01:52]} {[%emt
00:00:03]} 32. b5 {[%clk 00:01:15]} {[%emt 00:00:03]} axb5 {[%clk 00:01:52]}
{[%emt 00:00:05]} 33. Rxb5 {[%clk 00:01:19]} {[%emt 00:00:01]} Ra4 {[%clk
00:01:41]} {[%emt 00:00:16]} 34. Rxd5 {[%clk 00:01:21]} {[%emt 00:00:03]} Bxa5
{[%clk 00:01:44]} {[%emt 00:00:02]} 35. Ke4 {[%clk 00:01:22]} {[%emt 00:00:05]}
Kg6 {[%clk 00:01:46]} {[%emt 00:00:02]} 36. f4 {[%clk 00:01:24]} {[%emt
00:00:03]} gxf4 {[%clk 00:01:46]} {[%emt 00:00:06]} 37. gxf4 {[%clk 00:01:27]}
{[%emt 00:00:01]} Bd2 {[%clk 00:01:41]} {[%emt 00:00:09]} 38. Kd3 {[%clk
00:01:27]} {[%emt 00:00:06]} Be1 {[%clk 00:01:34]} {[%emt 00:00:12]} 39. e4
{[%clk 00:01:26]} {[%emt 00:00:07]} Bf2 {[%clk 00:01:27]} {[%emt 00:00:11]} 40.
e5 {[%clk 00:01:23]} {[%emt 00:00:08]} fxe5 {[%clk 00:01:31]} {[%emt 00:00:01]}
41. fxe5 {[%clk 00:01:27]} {[%emt 00:00:02]} Kf5 {[%clk 00:01:29]} {[%emt
00:00:06]} 42. Rd7 {[%clk 00:01:28]} {[%emt 00:00:04]} Ke6 {[%clk 00:01:22]}
{[%emt 00:00:12]} 43. Rxh7 {[%clk 00:01:27]} {[%emt 00:00:06]} Rxd4+ {[%clk
00:01:25]} {[%emt 00:00:02]} 44. Kc3 {[%clk 00:01:30]} {[%emt 00:00:02]} Rd5
{[%clk 00:00:55]} {[%emt 00:00:35]} 45. Rh8 {[%clk 00:01:32]} {[%emt 00:00:03]}
Bd4+ {[%emt 00:00:19]} 46. Kc4 Bf2 {[%clk 00:00:23]} {[%emt 00:00:21]} 47. Re8+
{[%clk 00:01:40]} {[%emt 00:00:03]} 1-0

[Event "Rapid Tournament (RAP)"]
[Site "Biel, Switzerland"]
[Date "2026.07.12"]
[Round "5.28"]
[White "Klopfenstein, Francois"]
[Black "Alexakis, Dimitrios"]
[Result "0-1"]
[TimeControl "15 + 5"]
[WhiteTitle "-"]
[BlackTitle "-"]
[WhiteFideId "1303040"]
[BlackFideId "4200527"]
[WhiteElo "1815"]
[BlackElo "1954"]

1. e4 {[%clk 00:15:08]} c5 {[%clk 00:15:05]} {[%emt 00:00:05]} 2. Nc3 {[%clk
00:15:10]} {[%emt 00:00:03]} Nc6 {[%clk 00:15:08]} {[%emt 00:00:02]} 3. f4
{[%clk 00:15:13]} {[%emt 00:00:03]} e6 {[%clk 00:15:11]} {[%emt 00:00:01]} 4.
Nf3 {[%clk 00:15:16]} {[%emt 00:00:02]} Nge7 {[%clk 00:15:05]} {[%emt
00:00:12]} 5. Bb5 {[%clk 00:13:20]} {[%emt 00:02:01]} a6 {[%clk 00:15:07]}
{[%emt 00:00:03]} 6. Bxc6 {[%clk 00:13:23]} {[%emt 00:00:02]} Nxc6 {[%clk
00:14:54]} {[%emt 00:00:17]} 7. O-O {[%clk 00:13:15]} {[%emt 00:00:13]} d6
{[%clk 00:14:32]} {[%emt 00:00:27]} 8. d3 {[%clk 00:13:04]} {[%emt 00:00:16]}
Be7 {[%clk 00:14:32]} {[%emt 00:00:05]} 9. a3 {[%clk 00:12:41]} {[%emt
00:00:29]} b5 {[%clk 00:14:04]} {[%emt 00:00:33]} 10. Qe1 {[%clk 00:12:01]}
{[%emt 00:00:45]} O-O {[%clk 00:12:56]} {[%emt 00:01:12]} 11. Nd1 {[%clk
00:12:02]} {[%emt 00:00:04]} Bb7 {[%clk 00:12:20]} {[%emt 00:00:40]} 12. Ne3
{[%clk 00:11:58]} {[%emt 00:00:09]} Nd4 {[%clk 00:12:07]} {[%emt 00:00:18]} 13.
Qf2 {[%clk 00:09:23]} {[%emt 00:02:41]} Rc8 {[%clk 00:10:46]} {[%emt 00:01:26]}
14. Nd2 {[%clk 00:09:19]} {[%emt 00:00:10]} Bh4 {[%clk 00:09:46]} {[%emt
00:01:04]} 15. g3 {[%clk 00:09:22]} {[%emt 00:00:02]} Bf6 {[%clk 00:09:49]}
{[%emt 00:00:02]} 16. c3 {[%clk 00:09:25]} {[%emt 00:00:02]} Nc6 {[%clk
00:09:53]} {[%emt 00:00:02]} 17. Nf3 {[%clk 00:09:10]} {[%emt 00:00:20]} b4
{[%clk 00:09:39]} {[%emt 00:00:18]} 18. Bd2 {[%clk 00:08:58]} {[%emt 00:00:17]}
a5 {[%clk 00:09:29]} {[%emt 00:00:15]} 19. Rad1 {[%clk 00:07:01]} {[%emt
00:02:02]} Ba6 {[%clk 00:09:12]} {[%emt 00:00:22]} 20. Ne1 {[%clk 00:06:38]}
{[%emt 00:00:29]} Rb8 {[%clk 00:08:52]} {[%emt 00:00:24]} 21. Qf3 {[%clk
00:06:09]} {[%emt 00:00:35]} bxc3 {[%clk 00:07:41]} {[%emt 00:01:16]} 22. bxc3
{[%clk 00:06:11]} {[%emt 00:00:03]} Be7 {[%clk 00:07:24]} {[%emt 00:00:21]} 23.
Nc4 {[%clk 00:05:11]} {[%emt 00:01:06]} Bxc4 {[%clk 00:07:01]} {[%emt
00:00:27]} 24. dxc4 {[%clk 00:05:14]} {[%emt 00:00:02]} Qc7 {[%clk 00:06:45]}
{[%emt 00:00:22]} 25. Nd3 {[%clk 00:05:07]} {[%emt 00:00:12]} Rb3 {[%clk
00:06:43]} {[%emt 00:00:06]} 26. Ra1 {[%clk 00:04:17]} {[%emt 00:00:56]} Rfb8
{[%clk 00:06:39]} {[%emt 00:00:09]} 27. e5 {[%clk 00:04:02]} {[%emt 00:00:20]}
dxe5 {[%clk 00:05:42]} {[%emt 00:01:01]} 28. fxe5 {[%clk 00:04:03]} {[%emt
00:00:04]} Rf8 {[%clk 00:05:42]} {[%emt 00:00:05]} 29. Qf2 {[%clk 00:03:16]}
{[%emt 00:00:52]} Nxe5 {[%clk 00:05:06]} {[%emt 00:00:41]} 30. Bf4 {[%clk
00:01:25]} {[%emt 00:01:56]} Nxd3 {[%clk 00:05:02]} {[%emt 00:00:10]} 31. Bxc7
{[%clk 00:01:29]} {[%emt 00:00:01]} Nxf2 {[%clk 00:05:04]} {[%emt 00:00:02]} 32.
Rxf2 {[%clk 00:01:32]} {[%emt 00:00:02]} Rxc3 {[%clk 00:05:03]} {[%emt
00:00:06]} 33. Bxa5 {[%clk 00:01:35]} {[%emt 00:00:03]} Rxc4 {[%clk 00:05:05]}
{[%emt 00:00:02]} 34. Raa2 {[%clk 00:01:14]} {[%emt 00:00:27]} Ra8 {[%clk
00:04:53]} {[%emt 00:00:16]} 35. Bc7 {[%clk 00:01:08]} {[%emt 00:00:12]} Bf6
{[%clk 00:04:27]} {[%emt 00:00:30]} 36. Kg2 {[%clk 00:01:07]} {[%emt 00:00:07]}
Rca4 {[%clk 00:04:11]} {[%emt 00:00:20]} 37. Bd6 {[%clk 00:00:50]} {[%emt
00:00:23]} Bd4 {[%clk 00:03:55]} {[%emt 00:00:20]} 38. Rfc2 {[%clk 00:00:50]}
{[%emt 00:00:06]} Rxa3 {[%clk 00:03:48]} {[%emt 00:00:11]} 39. Rxa3 {[%clk
00:00:54]} {[%emt 00:00:01]} Rxa3 {[%clk 00:03:52]} {[%emt 00:00:02]} 40. Bxc5
{[%clk 00:00:47]} {[%emt 00:00:12]} Bxc5 {[%clk 00:03:54]} {[%emt 00:00:03]} 41.
Rxc5 {[%clk 00:00:51]} {[%emt 00:00:01]} g6 {[%clk 00:03:57]} {[%emt 00:00:02]}
42. h4 {[%clk 00:00:41]} {[%emt 00:00:15]} h5 {[%clk 00:04:00]} {[%emt
00:00:01]} 43. Kf2 {[%clk 00:00:40]} {[%emt 00:00:07]} Kg7 {[%clk 00:04:03]} 44.
Rc7 {[%clk 00:00:42]} {[%emt 00:00:03]} Kf6 {[%clk 00:04:07]} {[%emt 00:00:02]}
45. Kg2 {[%clk 00:00:44]} {[%emt 00:00:03]} e5 {[%clk 00:04:08]} {[%emt
00:00:03]} 46. Rc6+ {[%clk 00:00:47]} {[%emt 00:00:03]} Kf5 {[%clk 00:04:11]}
{[%emt 00:00:02]} 47. Rc7 {[%clk 00:00:50]} {[%emt 00:00:02]} f6 {[%clk
00:04:14]} {[%emt 00:00:01]} 48. Rc5 {[%clk 00:00:53]} {[%emt 00:00:03]} Rb3
{[%clk 00:03:57]} {[%emt 00:00:21]} 49. Rc4 {[%clk 00:00:53]} {[%emt 00:00:05]}
e4 {[%clk 00:03:46]} {[%emt 00:00:16]} 50. Ra4 {[%clk 00:00:32]} {[%emt
00:00:28]} Rb2+ {[%clk 00:03:36]} {[%emt 00:00:14]} 51. Kh3 {[%clk 00:00:21]}
{[%emt 00:00:15]} Rd2 {[%clk 00:03:35]} {[%emt 00:00:06]} 52. Ra5+ {[%clk
00:00:18]} {[%emt 00:00:08]} Ke6 {[%clk 00:03:38]} {[%emt 00:00:02]} 53. Ra6+
{[%clk 00:00:22]} {[%emt 00:00:02]} Ke5 {[%clk 00:03:40]} {[%emt 00:00:03]} 54.
Ra5+ {[%clk 00:00:25]} {[%emt 00:00:01]} Rd5 {[%clk 00:03:42]} {[%emt
00:00:03]} 55. Ra8 {[%clk 00:00:28]} {[%emt 00:00:02]} e3 {[%clk 00:03:43]}
{[%emt 00:00:04]} 56. Re8+ {[%clk 00:00:30]} {[%emt 00:00:04]} Kd4 {[%clk
00:03:45]} {[%emt 00:00:02]} 57. g4 {[%clk 00:00:31]} {[%emt 00:00:04]} hxg4+
{[%clk 00:03:45]} {[%emt 00:00:06]} 58. Kxg4 {[%clk 00:00:35]} {[%emt
00:00:01]} Re5 {[%clk 00:03:42]} {[%emt 00:00:07]} 0-1

[Event "Rapid Tournament (RAP)"]
[Site "Biel, Switzerland"]
[Date "2026.07.12"]
[Round "5.29"]
[White "Pinelli, Gian"]
[Black "Wilhelm, Serge"]
[Result "1/2-1/2"]
[TimeControl "15 + 5"]
[WhiteTitle "-"]
[BlackTitle "-"]
[WhiteFideId "1348710"]
[BlackFideId "1305808"]
[WhiteElo "1774"]
[BlackElo "1923"]

1. d4 {[%clk 00:15:07]} Nf6 {[%clk 00:15:09]} {[%emt 00:00:01]} 2. c4 {[%clk
00:15:11]} {[%emt 00:00:02]} e6 {[%clk 00:15:13]} 3. Nc3 {[%clk 00:15:14]}
{[%emt 00:00:01]} Bb4 {[%clk 00:15:16]} {[%emt 00:00:02]} 4. Qc2 {[%clk
00:15:18]} {[%emt 00:00:01]} Nc6 {[%clk 00:15:14]} {[%emt 00:00:07]} 5. Nf3
{[%clk 00:15:15]} {[%emt 00:00:08]} d6 {[%clk 00:15:08]} {[%emt 00:00:12]} 6.
a3 {[%clk 00:15:14]} {[%emt 00:00:06]} Bxc3+ {[%clk 00:15:11]} {[%emt
00:00:02]} 7. Qxc3 {[%clk 00:15:17]} {[%emt 00:00:02]} O-O {[%clk 00:15:03]}
{[%emt 00:00:12]} 8. Bg5 {[%clk 00:15:15]} {[%emt 00:00:07]} h6 {[%clk
00:15:01]} {[%emt 00:00:07]} 9. Bh4 {[%clk 00:15:18]} {[%emt 00:00:03]} Qe7
{[%clk 00:14:53]} {[%emt 00:00:12]} 10. Qc2 {[%clk 00:14:01]} {[%emt 00:01:22]}
e5 {[%clk 00:14:41]} {[%emt 00:00:16]} 11. d5 {[%clk 00:13:54]} {[%emt
00:00:13]} Nb8 {[%clk 00:14:28]} {[%emt 00:00:18]} 12. e4 {[%clk 00:13:45]}
{[%emt 00:00:14]} b6 {[%clk 00:14:21]} {[%emt 00:00:12]} 13. Be2 {[%clk
00:13:15]} {[%emt 00:00:36]} Nbd7 {[%clk 00:13:54]} {[%emt 00:00:31]} 14. b4
{[%clk 00:13:03]} {[%emt 00:00:17]} a5 {[%clk 00:13:54]} {[%emt 00:00:05]} 15.
O-O {[%clk 00:13:05]} {[%emt 00:00:03]} Bb7 {[%clk 00:13:24]} {[%emt 00:00:35]}
16. Nd2 {[%clk 00:12:24]} {[%emt 00:00:46]} Rfe8 {[%clk 00:11:37]} {[%emt
00:01:52]} 17. f3 {[%clk 00:12:09]} {[%emt 00:00:20]} Qf8 {[%clk 00:09:47]}
{[%emt 00:01:55]} 18. Bd3 {[%clk 00:11:55]} {[%emt 00:00:19]} axb4 {[%clk
00:09:36]} {[%emt 00:00:17]} 19. axb4 {[%clk 00:11:57]} {[%emt 00:00:03]} Rxa1
{[%clk 00:09:38]} {[%emt 00:00:02]} 20. Rd1 {[%emt 00:00:02]} Rb1 21. Rxb1
{[%clk 00:12:00]} Rb8 {[%emt 00:00:02]} 22. Ra1 Ra8 {[%clk 00:09:42]} 23. Qb2
{[%clk 00:11:35]} {[%emt 00:00:26]} Rxa1+ {[%clk 00:09:23]} {[%emt 00:00:27]}
24. Qxa1 {[%clk 00:11:38]} {[%emt 00:00:01]} Qa8 {[%clk 00:09:28]} {[%emt
00:00:02]} 25. Qxa8+ {[%clk 00:11:33]} {[%emt 00:00:10]} Bxa8 {[%clk 00:09:31]}
26. Bf2 {[%clk 00:11:29]} {[%emt 00:00:09]} Kf8 {[%clk 00:09:15]} {[%emt
00:00:21]} 27. Nb3 {[%clk 00:11:32]} {[%emt 00:00:02]} Ke7 {[%clk 00:09:13]}
{[%emt 00:00:07]} 28. c5 {[%clk 00:11:29]} {[%emt 00:00:09]} bxc5 {[%clk
00:08:55]} {[%emt 00:00:23]} 29. bxc5 {[%clk 00:11:32]} Nxc5 {[%clk 00:07:22]}
{[%emt 00:01:39]} 30. Nxc5 {[%clk 00:11:34]} {[%emt 00:00:03]} dxc5 {[%clk
00:07:25]} {[%emt 00:00:01]} 31. Bxc5+ {[%clk 00:11:35]} {[%emt 00:00:04]} Kd7
{[%clk 00:07:27]} {[%emt 00:00:01]} 32. Bf8 {[%clk 00:10:15]} {[%emt 00:01:25]}
Ne8 {[%clk 00:07:30]} {[%emt 00:00:04]} 33. Bc4 {[%clk 00:09:52]} {[%emt
00:00:27]} h5 {[%clk 00:07:04]} {[%emt 00:00:31]} 34. Kf2 {[%clk 00:09:51]}
{[%emt 00:00:07]} g6 {[%clk 00:07:06]} {[%emt 00:00:03]} 35. Ke3 {[%clk
00:09:01]} {[%emt 00:00:54]} Nd6 {[%clk 00:06:56]} {[%emt 00:00:16]} 36. Bb3
{[%clk 00:09:05]} f6 {[%clk 00:06:26]} {[%emt 00:00:35]} 37. Ba4+ {[%clk
00:07:53]} {[%emt 00:01:17]} Kd8 {[%clk 00:06:05]} {[%emt 00:00:26]} 38. g4
{[%clk 00:07:04]} {[%emt 00:00:55]} hxg4 {[%clk 00:04:47]} {[%emt 00:01:22]} 39.
fxg4 {[%clk 00:07:07]} {[%emt 00:00:02]} g5 {[%clk 00:04:51]} {[%emt 00:00:02]}
40. Kd3 {[%clk 00:04:29]} {[%emt 00:02:42]} Bb7 {[%clk 00:04:50]} {[%emt
00:00:06]} 41. Bxd6 {[%clk 00:03:53]} {[%emt 00:00:41]} Ba6+ {[%clk 00:04:01]}
{[%emt 00:00:54]} 42. Ke3 {[%clk 00:03:46]} {[%emt 00:00:12]} 1/2-1/2